bitfinex-derivatives/quotes_SOLF0:USTF0_20241107
["timestamp","ask_amount","ask_price","bid_price","bid_amount"]
[1730991251227,6.21520245,187.88,187.8,12.76328961]
[1730991251423,2.6595,187.88,187.81,3.2838]
[1730991251627,12.76328961,187.91,187.81,3.2838]
[1730991254735,12.76328961,187.91,187.81,5.9443]
[1730991255331,6.21520245,187.95,187.57,16.01]
[1730991255332,12.76328961,187.88,187.57,16.01]
[1730991255530,12.76328961,187.88,187.76,12.76328961]
[1730991255731,12.76328961,187.88,187.77,1.585]
[1730991256233,12.76328961,187.88,187.77,14.34828961]
[1730991256633,6.21520245,187.95,187.82,12.76328961]
[1730991256834,12.76328961,187.95,187.83,1.634]
[1730991257234,2.6594,187.89,187.83,1.634]
[1730991257533,12.76328961,187.93,187.83,1.634]
[1730991257736,2.6597,187.87,187.83,1.634]
[1730991258439,2.6592,187.9,187.83,1.634]
[1730991258740,12.76328961,187.93,187.83,1.634]
[1730991259327,12.76328961,187.9,187.81,12.76328961]
[1730991259632,12.76328961,187.9,187.78,18.87188961]
[1730991259829,2.6599,187.85,187.78,18.87188961]
[1730991260430,12.76328961,187.9,187.81,2.6605]
[1730991261730,2.6598,187.86,187.81,2.6605]
[1730991262542,2.6596,187.88,187.81,2.6605]
[1730991262741,12.76328961,187.9,187.81,2.6605]
[1730991263128,12.76328961,187.9,187.78,18.87188961]
[1730991263926,2.6599,187.86,187.81,2.6605]
[1730991264736,12.76328961,187.9,187.78,18.87188961]
[1730991265741,2.6598,187.86,187.81,2.6605]
[1730991266239,4.4,187.94,187.78,6.1086]
[1730991266240,12.76328961,187.88,187.78,6.1086]
[1730991266436,2.6603,187.83,187.78,1.7086]
[1730991267233,2.6603,187.83,187.78,4.3695]
[1730991267936,2.70422438,187.86,187.78,2.6609]
[1730991268138,2.70422438,187.86,187.76,12.76328961]
[1730991268338,2.70422438,187.86,187.79,2.6608]
[1730991268544,12.76328961,187.88,187.78,12.76328961]
[1730991268740,12.76328961,187.9,187.81,2.6604]
[1730991269342,2.6599,187.86,187.81,2.6604]
[1730991269538,12.76328961,187.9,187.79,1.704]
[1730991269740,12.76328961,187.9,187.82,2.6603]
[1730991270141,2.6595,187.88,187.83,2.6601]
[1730991270338,12.76328961,187.9,187.83,2.6601]
[1730991270840,17.04328961,187.93,187.85,2.6599]
[1730991271638,17.04328961,187.93,187.83,12.76328961]
[1730991272344,12.76328961,187.91,187.81,12.76328961]
[1730991273239,12.76328961,187.91,187.82,2.6603]
[1730991273440,12.76328961,187.91,187.81,12.76328961]
[1730991273741,17.04328961,187.93,187.81,12.76328961]
[1730991273941,17.04328961,187.93,187.83,2.6601]
[1730991274345,2.6596,187.88,187.83,2.6601]
[1730991274746,17.04328961,187.93,187.83,2.6601]
[1730991275448,17.04328961,187.93,187.84,2.66]
[1730991275745,2.6595,187.89,187.83,12.76328961]
[1730991276146,2.6595,187.89,187.84,2.66]
[1730991277142,2.6595,187.89,187.85,2.6598]
[1730991277845,2.6593,187.9,187.85,2.6598]
[1730991279636,2.6593,187.9,187.86,2.6597]
[1730991280848,2.6594,187.89,187.86,2.6597]
[1730991283044,8.02828574,187.99,187.85,15.42308961]
[1730991283045,2.6593,187.9,187.85,15.42308961]
[1730991283245,12.76328961,187.98,187.88,12.76328961]
[1730991283650,12.76328961,187.98,187.85,4.02]
[1730991283848,2.6589,187.92,187.88,2.6594]
[1730991285159,12.76328961,187.98,187.87,14.36598961]
[1730991287049,12.76328961,187.98,187.87,1.6027]
[1730991287244,6.69834959,188.0,187.82,5.6329]
[1730991287245,12.76328961,187.95,187.82,5.6329]
[1730991287444,12.76328961,187.95,187.84,12.76328961]
[1730991287645,12.76328961,187.95,187.86,2.6598]
[1730991287646,2.6593,187.9,187.86,2.6598]
[1730991288644,12.76328961,187.92,187.81,1.2253]
[1730991288846,2.6602,187.83,187.81,1.2253]
[1730991289057,12.76328961,187.87,187.81,1.2253]
[1730991289448,2.6603,187.82,187.81,1.2253]
[1730991289648,12.76328961,187.89,187.81,1.2253]
[1730991289955,2.66,187.85,187.81,1.2253]
[1730991290959,2.66,187.85,187.81,3.8857]
[1730991291751,2.6598,187.86,187.81,3.8857]
[1730991292544,2.66,187.85,187.81,1.2253]
[1730991292949,12.76328961,187.87,187.77,1.2553]
[1730991293154,2.6605,187.82,187.77,3.9163]
[1730991293352,6.17780948,187.93,187.78,12.76328961]
[1730991293561,12.76328961,187.91,187.78,12.76328961]
[1730991294061,12.76328961,187.89,187.78,12.76328961]
[1730991294253,12.76328961,187.89,187.77,1.2553]
[1730991295149,12.76328961,187.89,187.79,2.6607]
[1730991296656,2.6598,187.86,187.79,2.6607]
[1730991296855,12.76328961,187.89,187.79,2.6607]
[1730991297553,2.6602,187.84,187.79,2.6607]
[1730991297948,12.76328961,187.89,187.79,2.6607]
[1730991298149,2.6602,187.83,187.79,2.6607]
[1730991299151,2.66,187.85,187.8,2.6606]
[1730991299456,2.66,187.85,187.78,12.76328961]
[1730991300561,12.76328961,187.89,187.78,12.76328961]
[1730991300762,2.6598,187.86,187.78,12.76328961]
[1730991300967,2.6598,187.86,187.81,2.6603]
[1730991301366,2.6601,187.84,187.78,2.6608]
[1730991301555,12.76328961,187.89,187.77,1.2553]
[1730991301864,12.76328961,187.89,187.8,2.6605]
[1730991302261,12.76328961,187.89,187.77,1.2553]
[1730991302456,18.94109909,187.89,187.77,1.2553]
[1730991302767,2.6601,187.84,187.79,2.6607]
[1730991303670,2.6601,187.84,187.79,2.6608]
[1730991307270,2.6601,187.84,187.8,8.17468658]
[1730991308175,2.6601,187.84,187.8,10.83528658]
[1730991309677,6.17780948,187.93,187.8,8.17468658]
[1730991309878,8.17468658,187.86,187.77,1.2553]
[1730991310079,8.17468658,187.84,187.78,8.17468658]
[1730991310272,2.6604,187.82,187.79,2.6607]
[1730991310579,8.17468658,187.82,187.77,9.42998658]
[1730991310777,8.17468658,187.8,187.76,1.3202]
[1730991311077,2.6609,187.79,187.76,1.3202]
[1730991311667,8.17468658,187.81,187.76,9.49488658]
[1730991312075,8.17468658,187.81,187.76,12.15608658]
[1730991312274,8.17468658,187.81,187.76,9.49488658]
[1730991312773,10.83518658,187.81,187.77,2.6609]
[1730991313284,2.6605,187.81,187.78,8.17468658]
[1730991313679,6.17780948,187.87,187.78,8.17468658]
[1730991313879,8.17468658,187.85,187.79,10.83538658]
[1730991314074,8.17468658,187.85,187.79,8.17468658]
[1730991314667,8.17468658,187.85,187.82,2.6603]
[1730991314979,8.17468658,187.85,187.79,8.17468658]
[1730991315277,2.6601,187.84,187.8,2.6605]
[1730991315475,3.86,187.88,187.81,8.17468658]
[1730991315677,8.17468658,187.87,187.81,8.17468658]
[1730991315881,2.66,187.85,187.81,10.83518658]
[1730991316580,8.83690948,187.91,187.86,2.6597]
[1730991316776,2.6591,187.91,187.88,8.17468658]
[1730991317270,16.63458273,187.97,187.86,12.77458273]
[1730991317579,2.6589,187.92,187.87,2.6595]
[1730991317881,6.17780948,187.96,187.86,12.77458273]
[1730991318079,2.6588,187.93,187.88,2.6594]
[1730991318580,2.6588,187.93,187.89,2.6593]
[1730991319377,12.77458273,187.97,187.89,2.6593]
[1730991319582,2.6587,187.94,187.89,2.6593]
[1730991320369,2.6587,187.94,187.88,12.77458273]
[1730991320370,2.6585,187.95,187.9,2.6591]
[1730991320979,2.6584,187.96,187.91,15.43358273]
[1730991322280,12.77458273,187.99,187.88,12.77458273]
[1730991322476,2.6586,187.95,187.9,2.6592]
[1730991324282,2.6582,187.97,187.91,15.43358273]
[1730991324482,2.6582,187.97,187.85,2.5943]
[1730991324483,12.77458273,188.03,187.89,3.86]
[1730991324685,12.77458273,188.0,187.91,12.77458273]
[1730991324986,2.6585,187.96,187.91,15.43358273]
[1730991326596,3.86,188.04,187.94,2.6586]
[1730991326786,12.77458273,188.02,187.94,2.6586]
[1730991327186,2.6581,187.99,187.95,2.6585]
[1730991329288,2.6578,188.0,187.95,2.6585]
[1730991329478,12.77458273,188.05,187.96,2.6583]
[1730991329885,2.6578,188.01,187.96,2.6583]
[1730991330080,12.77458273,188.05,187.96,2.6583]
[1730991330281,12.77458273,188.05,187.93,2.4341]
[1730991330282,12.77458273,188.07,187.97,15.43268273]
[1730991330482,2.6574,188.03,187.97,12.77458273]
[1730991331297,2.6574,188.03,187.98,2.658]
[1730991331691,2.6572,188.05,187.97,12.77458273]
[1730991331894,12.77458273,188.07,187.97,12.77458273]
[1730991332087,6.18169107,188.08,187.99,12.77458273]
[1730991332395,2.6571,188.06,188.01,2.6576]
[1730991333090,18.9562738,188.1,188.01,2.6576]
[1730991333295,2.6571,188.05,188.01,2.6576]
[1730991333693,12.77458273,188.07,187.97,2.6582]
[1730991333996,2.6576,188.02,187.96,2.62969218]
[1730991334200,12.77458273,188.07,187.96,2.62969218]
[1730991334696,12.77458273,188.07,187.97,2.6582]
[1730991334892,2.6577,188.02,187.97,2.6582]
[1730991335094,2.6577,188.02,187.95,16.63458273]
[1730991335397,2.6575,188.03,187.99,2.6579]
[1730991335600,12.77458273,188.07,187.99,2.6579]
[1730991335798,12.77458273,188.07,187.97,12.77458273]
[1730991335992,2.6574,188.04,188.0,2.6578]
[1730991339606,12.77458273,188.09,188.01,3.6921]
[1730991340206,12.77458273,188.09,188.01,2.4803]
[1730991341309,2.6569,188.07,188.01,2.4803]
[1730991341621,3.86,188.12,188.01,10.64585565]
[1730991341809,2.6574,188.03,188.01,10.64585565]
[1730991342212,8.16555565,188.06,188.01,10.64585565]
[1730991342603,2.6574,188.03,188.01,10.64585565]
[1730991344106,8.16555565,188.05,188.01,10.64585565]
[1730991344305,2.6574,188.03,188.01,10.64585565]
[1730991346205,8.16555565,188.05,187.97,3.86]
[1730991346416,3.86,188.12,187.97,6.5182]
[1730991346417,8.16555565,188.03,187.97,6.5182]
[1730991346617,3.86,188.12,188.0,8.16555565]
[1730991346918,2.6575,188.02,188.0,8.16555565]
[1730991348310,8.16555565,188.05,188.0,8.16555565]
[1730991349017,2.6576,188.02,188.0,8.16555565]
[1730991349220,8.16555565,188.03,187.97,3.86]
[1730991349413,2.6579,188.0,187.97,3.86]
[1730991349717,2.6579,188.0,187.97,12.02555565]
[1730991350421,2.6576,188.02,187.99,8.16555565]
[1730991351418,2.6573,188.04,187.99,8.16555565]
[1730991351619,18.33646254,188.14,188.02,8.16555565]
[1730991351809,6.57267491,188.15,188.05,8.16555565]
[1730991352018,2.6568,188.08,188.05,8.16555565]
[1730991353015,2.6568,188.07,188.05,8.16555565]
[1730991353415,8.16555565,188.1,188.05,8.16555565]
[1730991353816,2.6569,188.07,188.05,8.16555565]
[1730991354520,2.6569,188.07,188.03,2.6574]
[1730991354716,2.6569,188.07,188.05,8.16555565]
[1730991355927,8.16555565,188.1,188.05,8.16555565]
[1730991356721,2.6568,188.07,188.05,8.16555565]
[1730991357320,2.6566,188.09,188.06,8.16555565]
[1730991358120,8.16555565,188.12,188.06,8.16555565]
[1730991358320,2.6566,188.09,188.06,8.16555565]
[1730991359325,2.6566,188.09,188.06,10.82245565]
[1730991359526,2.6568,188.08,188.06,8.16555565]
[1730991360020,2.6568,188.08,188.05,8.16555565]
[1730991360827,8.16555565,188.08,187.96,1.2118]
[1730991361018,8.16555565,188.08,188.02,8.16555565]
[1730991361821,2.6569,188.07,188.04,8.16555565]
[1730991362016,8.16555565,188.1,188.06,8.16555565]
[1730991362424,2.6568,188.08,188.06,8.16555565]
[1730991362625,8.16555565,188.1,188.06,8.16555565]
[1730991362827,8.16555565,188.1,188.05,8.16555565]
[1730991363026,2.6569,188.07,188.05,8.16555565]
[1730991364242,8.16555565,188.1,188.03,10.82285565]
[1730991364440,8.16555565,188.06,187.96,1.2118]
[1730991364649,8.16555565,188.06,188.01,8.16555565]
[1730991364846,2.6574,188.04,188.01,8.16555565]
[1730991365042,8.16555565,188.06,188.0,8.16555565]
[1730991365435,2.6572,188.05,188.0,8.16555565]
[1730991365638,8.16555565,188.06,188.0,8.16555565]
[1730991366148,8.16555565,188.06,188.02,8.16555565]
[1730991366149,2.6574,188.03,188.02,8.16555565]
[1730991366539,8.16555565,188.07,188.02,8.16555565]
[1730991367138,2.6571,188.05,188.02,8.16555565]
[1730991368146,2.6573,188.04,188.02,8.16555565]
[1730991368346,8.16555565,188.06,187.96,1.2118]
[1730991368546,8.16555565,188.02,187.96,1.2118]
[1730991368741,8.16555565,188.02,187.97,8.16555565]
[1730991369045,2.658,187.99,187.96,1.2118]
[1730991369356,2.6584,187.96,187.94,8.16555565]
[1730991370243,8.16555565,187.99,187.94,8.16555565]
[1730991370450,2.6582,187.97,187.94,8.16555565]
[1730991370750,8.16555565,188.02,187.96,8.16555565]
[1730991371055,8.16555565,188.02,187.97,8.16555565]
[1730991371251,2.6579,188.0,187.97,8.16555565]
[1730991371553,2.6579,188.0,187.95,2.6585]
[1730991371554,8.16555565,188.03,187.99,8.16555565]
[1730991371739,2.6574,188.03,188.0,8.16555565]
[1730991372348,8.16555565,188.05,188.0,8.16555565]
[1730991372557,2.6576,188.02,188.0,8.16555565]
[1730991374255,2.6576,188.02,187.99,8.16555565]
[1730991375457,2.6576,188.02,187.95,3.84]
[1730991375458,2.658,187.99,187.95,3.84]
[1730991375651,8.16555565,188.02,187.96,8.16555565]
[1730991376051,2.6578,188.0,187.96,8.16555565]
[1730991376445,8.16555565,188.01,187.96,8.16555565]
[1730991376649,2.658,187.99,187.96,8.16555565]
[1730991377052,2.6581,187.98,187.96,8.16555565]
[1730991377347,8.16555565,188.0,187.94,8.16555565]
[1730991377553,2.6583,187.97,187.94,8.16555565]
[1730991378352,2.6581,187.98,187.96,8.16555565]
[1730991379658,8.16555565,188.0,187.96,8.16555565]
[1730991379962,2.6581,187.98,187.96,8.16555565]
[1730991380551,2.6582,187.98,187.96,8.16555565]
[1730991384567,2.59770592,188.06,187.93,1.2917]
[1730991384568,2.6584,187.96,187.93,1.2917]
[1730991384863,2.6584,187.96,187.93,9.45725565]
[1730991386757,3.84,188.03,187.93,9.45725565]
[1730991386958,8.16555565,188.01,187.96,8.16555565]
[1730991387457,2.6581,187.98,187.96,8.16555565]
[1730991387764,8.16555565,188.01,187.96,8.16555565]
[1730991388067,2.6579,188.0,187.98,8.16555565]
[1730991388667,2.6579,188.0,187.96,2.6584]
[1730991388864,2.658,187.99,187.96,10.82395565]
[1730991389963,2.6576,188.02,187.98,8.16555565]
[1730991390168,2.6576,188.02,188.0,8.16555565]
[1730991391067,2.6577,188.01,188.0,8.16555565]
[1730991392166,8.16555565,188.05,188.0,8.16555565]
[1730991392367,2.6577,188.01,187.99,1.2269]
[1730991392571,8.16555565,188.03,187.99,1.2269]
[1730991392768,2.6578,188.0,187.99,1.2269]
[1730991394165,8.16555565,187.99,187.93,1.2917]
[1730991394368,8.16555565,187.97,187.93,9.45725565]
[1730991395069,2.6584,187.96,187.93,9.45725565]
[1730991395277,8.16555565,187.97,187.93,1.2917]
[1730991395574,6.44007801,188.02,187.9,8.16555565]
[1730991395575,10.82415565,187.94,187.9,8.16555565]
[1730991396269,8.16555565,187.94,187.9,8.16555565]
[1730991396468,2.6588,187.93,187.9,8.16555565]
[1730991397163,8.16555565,187.94,187.9,8.16555565]
[1730991397369,8.16555565,187.93,187.89,1.3257]
[1730991398872,2.6591,187.91,187.89,1.3257]
[1730991399473,12.76422709,187.95,187.89,1.3257]
[1730991399774,2.6592,187.91,187.89,1.3257]
[1730991402580,2.6595,187.89,187.85,1.2171]
[1730991402777,12.76422709,187.87,187.71,3.84]
[1730991402970,12.76422709,187.87,187.75,13.97342709]
[1730991403476,2.6604,187.82,187.77,2.6611]
[1730991404173,2.6601,187.85,187.78,15.42512709]
[1730991404374,12.76422709,187.9,187.8,12.76422709]
[1730991404675,3.84,187.92,187.83,12.76422709]
[1730991404870,2.6592,187.9,187.84,3.8692]
[1730991405075,3.84,187.92,187.84,3.8692]
[1730991405274,3.84,187.92,187.84,1.2092]
[1730991405674,2.6594,187.89,187.84,1.2092]
[1730991405876,3.84,187.92,187.84,1.2092]
[1730991406188,12.76422709,187.9,187.84,1.2092]
[1730991407381,2.6599,187.85,187.84,1.2092]
[1730991407882,2.6598,187.86,187.84,1.2092]
[1730991408273,12.76422709,187.9,187.84,1.2092]
[1730991408866,6.1842819,187.97,187.84,1.2092]
[1730991408867,3.84,187.93,187.84,1.2092]
[1730991409270,16.60422709,187.93,187.84,3.8692]
[1730991409478,16.60422709,187.93,187.84,1.2092]
[1730991410782,12.76422709,187.93,187.84,1.2092]
[1730991410981,2.6592,187.9,187.85,2.6598]
[1730991411779,2.6591,187.91,187.85,2.6598]
[1730991412279,2.6588,187.93,187.86,1.2973]
[1730991412475,12.76422709,187.94,187.86,1.2973]
[1730991413483,2.6591,187.91,187.86,3.957]
[1730991414577,12.76422709,187.94,187.86,3.957]
[1730991415184,2.6592,187.9,187.86,3.957]
[1730991417678,2.6592,187.91,187.86,3.9571]
[1730991418088,12.76422709,187.94,187.86,1.2973]
[1730991418288,12.76422709,187.94,187.87,2.6596]
[1730991418783,12.76422709,187.96,187.86,1.2973]
[1730991418987,2.6589,187.93,187.88,2.6594]
[1730991419881,15.95,188.06,187.88,8.17616522]
[1730991420084,8.17616522,187.95,187.89,2.6593]
[1730991420781,2.6588,187.94,187.89,2.6593]
[1730991421085,8.17616522,187.95,187.88,8.17616522]
[1730991421284,2.6593,187.92,187.87,1.2811]
[1730991422082,2.6594,187.9,187.87,1.2811]
[1730991423082,8.17616522,187.88,187.69,5.3248]
[1730991423287,8.17616522,187.86,187.8,341.6608]
[1730991423479,8.17616522,187.84,187.8,8.17616522]
[1730991423683,10.83656522,187.84,187.8,8.17616522]
[1730991424292,8.17616522,187.84,187.8,8.17616522]
[1730991424990,8.17616522,187.86,187.82,2.6605]
[1730991425389,10.83616522,187.86,187.82,2.6605]
[1730991427588,8.17616522,187.86,187.81,8.17616522]
[1730991427783,10.02956321,187.92,187.83,8.17616522]
[1730991427984,8.17616522,187.89,187.83,8.17616522]
[1730991428179,2.6598,187.88,187.84,2.6602]
[1730991428395,3.84,187.92,187.85,8.17616522]
[1730991428595,8.17616522,187.91,187.85,8.17616522]
[1730991428787,2.6596,187.89,187.85,8.17616522]
[1730991429183,8.17616522,187.91,187.85,8.17616522]
[1730991429581,8.17616522,187.91,187.84,2.6602]
[1730991429582,8.17616522,187.91,187.86,8.17616522]
[1730991429790,12.01616522,187.92,187.86,8.17616522]
[1730991429996,12.01616522,187.92,187.76,5.1452]
[1730991429997,12.01616522,187.92,187.88,8.17616522]
[1730991430490,8.17616522,187.96,187.9,8.17616522]
[1730991430899,2.659,187.93,187.9,8.17616522]
[1730991431694,3.84,188.01,187.91,8.17616522]
[1730991431892,8.17616522,187.97,187.83,342.8326]
[1730991432095,8.17616522,187.97,187.91,8.17616522]
[1730991432396,2.6586,187.96,187.91,10.83526522]
[1730991433396,8.17616522,187.97,187.9,2.6594]
[1730991433601,8.17616522,187.97,187.9,8.17616522]
[1730991433897,8.17616522,187.97,187.92,8.17616522]
[1730991434400,2.6582,187.99,187.92,8.17616522]
[1730991434601,8.17616522,187.97,187.92,8.17616522]
[1730991435900,2.6587,187.95,187.92,8.17616522]
[1730991436101,8.17616522,187.97,187.92,8.17616522]
[1730991437190,8.17616522,187.95,187.87,3.84]
[1730991437394,8.17616522,187.95,187.89,8.17616522]
[1730991438899,2.659,187.94,187.89,10.83576522]
[1730991439301,2.659,187.94,187.9,8.17616522]
[1730991441300,2.6592,187.92,187.86,2.66]
[1730991441503,2.6592,187.92,187.83,3.8326]
[1730991441504,8.17616522,187.89,187.84,8.17616522]
[1730991442099,2.6599,187.88,187.84,8.17616522]
[1730991442603,10.83566522,187.91,187.86,10.83616522]
[1730991443197,8.17616522,187.93,187.87,10.83606522]
[1730991443401,2.6593,187.92,187.87,10.83606522]
[1730991444202,8.17616522,187.93,187.87,2.6599]
[1730991444498,2.6594,187.91,187.87,10.83606522]
[1730991444908,2.6594,187.91,187.87,2.6599]
[1730991445104,2.6594,187.91,187.87,10.83606522]
[1730991445509,3.84,187.94,187.87,2.6599]
[1730991445707,3.84,187.94,187.83,3.8326]
[1730991446005,12.77657304,187.93,187.83,3.8326]
[1730991446217,12.77657304,187.93,187.82,12.77657304]
[1730991446218,2.6599,187.87,187.82,15.43717304]
[1730991446403,12.77657304,187.91,187.82,2.6606]
[1730991447710,2.66,187.87,187.82,2.6606]
[1730991448605,2.6601,187.86,187.81,2.6607]
[1730991449014,2.6603,187.85,187.81,2.6607]
[1730991449209,2.6603,187.85,187.8,2.6609]
[1730991449404,12.77657304,187.91,187.8,2.6609]
[1730991449616,2.6603,187.84,187.8,2.6609]
[1730991451810,2.6609,187.81,187.76,2.6615]
[1730991452313,12.77657304,187.84,187.75,2.5736]
[1730991452611,12.77657304,187.84,187.75,1.3047]
[1730991452816,12.77657304,187.81,187.75,1.3047]
[1730991453014,2.6613,187.78,187.73,2.6618]
[1730991453218,2.6613,187.78,187.71,12.77657304]
[1730991453219,12.77657304,187.81,187.71,12.77657304]
[1730991454016,2.6614,187.77,187.72,2.6619]
[1730991454208,12.77657304,187.81,187.71,12.77657304]
[1730991454415,12.77657304,187.79,187.7,1.233]
[1730991454607,12.77657304,187.79,187.7,3.8953]
[1730991454917,12.77657304,187.79,187.7,1.233]
[1730991455214,12.77657304,187.81,187.71,12.77657304]
[1730991455816,12.77657304,187.81,187.73,2.6618]
[1730991456717,2.6614,187.77,187.73,2.6618]
[1730991462212,2.6611,187.79,187.74,2.6617]
[1730991462414,12.77657304,187.81,187.71,12.77657304]
[1730991462815,12.77657304,187.81,187.75,2.6616]
[1730991463522,12.77657304,187.81,187.73,2.6618]
[1730991463720,12.77657304,187.79,187.7,2.5206]
[1730991464027,2.6619,187.73,187.7,1.233]
[1730991465124,2.6618,187.74,187.7,3.8953]
[1730991465430,12.77657304,187.76,187.7,1.233]
[1730991465822,2.6618,187.74,187.7,1.233]
[1730991466129,12.77657304,187.76,187.7,1.233]
[1730991466337,2.6619,187.73,187.7,1.233]
[1730991466621,2.6619,187.73,187.64,339.0]
[1730991466622,12.77657304,187.73,187.64,339.0]
[1730991466823,2.6623,187.7,187.63,3.8584]
[1730991467326,8.179967,187.69,187.64,8.179967]
[1730991468126,8.179967,187.69,187.65,2.663]
[1730991468424,10.842467,187.69,187.64,8.179967]
[1730991468622,3.82,187.77,187.66,8.179967]
[1730991468815,8.179967,187.73,187.69,8.179967]
[1730991469021,6.18402977,187.84,187.69,8.179967]
[1730991469022,8.179967,187.75,187.69,8.179967]
[1730991469228,8.179967,187.76,187.71,8.179967]
[1730991469526,2.6617,187.75,187.71,8.179967]
[1730991469728,8.179967,187.76,187.71,8.179967]
[1730991470515,8.179967,187.78,187.73,8.179967]
[1730991471322,2.6611,187.79,187.74,2.6617]
[1730991471521,12.78199246,187.81,187.71,3.7617]
[1730991471924,15.44289246,187.81,187.76,2.6615]
[1730991472125,12.78199246,187.84,187.73,12.78199246]
[1730991473127,12.78199246,187.84,187.77,2.6613]
[1730991473725,12.78199246,187.87,187.76,12.78199246]
[1730991473923,12.78199246,187.87,187.81,2.6608]
[1730991473924,2.6601,187.86,187.81,2.6608]
[1730991474421,2.6602,187.85,187.76,12.78199246]
[1730991475438,12.78199246,187.84,187.74,3.82]
[1730991476232,12.78199246,187.81,187.71,3.7617]
[1730991476828,2.6611,187.79,187.74,2.6616]
[1730991477632,2.6611,187.79,187.71,3.7617]
[1730991477832,2.6611,187.79,187.75,2.6615]
[1730991481634,2.6611,187.79,187.74,2.6617]
[1730991481938,2.6612,187.78,187.71,3.7617]
[1730991482435,2.6612,187.78,187.74,2.6617]
[1730991482635,2.6608,187.81,187.72,12.78199246]
[1730991482832,12.78199246,187.84,187.72,12.78199246]
[1730991483837,2.6606,187.82,187.77,2.6612]
[1730991484634,12.78199246,187.84,187.72,12.78199246]
[1730991484840,2.6605,187.83,187.78,2.6611]
[1730991485032,3.82,187.85,187.74,12.78199246]
[1730991485332,12.78199246,187.87,187.77,12.78199246]
[1730991485536,12.78199246,187.89,187.78,1.268]
[1730991485841,2.66,187.87,187.82,2.6605]
[1730991486535,12.78199246,187.89,187.79,2.4039]
[1730991486933,2.66,187.87,187.82,2.6605]
[1730991487347,12.78199246,187.89,187.79,2.4039]
[1730991487532,2.6601,187.86,187.79,2.4039]
[1730991488032,2.6601,187.86,187.82,2.6605]
[1730991488832,12.78199246,187.89,187.79,15.18589246]
[1730991489034,2.6599,187.88,187.83,2.6604]
[1730991489434,2.66,187.87,187.83,2.6604]
[1730991489636,12.78199246,187.89,187.83,2.6604]
[1730991489837,12.78199246,187.92,187.82,12.78199246]
[1730991490031,6.19384125,187.93,187.84,12.78199246]
[1730991490239,12.78199246,187.94,187.84,12.78199246]
[1730991490442,12.78199246,187.94,187.87,2.6598]
[1730991491034,12.78199246,187.92,187.85,2.6601]
[1730991491237,12.78199246,187.89,187.8,12.78199246]
[1730991491538,2.66,187.87,187.82,2.6606]
[1730991491837,12.78199246,187.89,187.79,2.4039]
[1730991492333,2.6602,187.85,187.8,2.6608]
[1730991492529,2.6602,187.85,187.79,2.4039]
[1730991492931,12.78199246,187.89,187.79,2.4039]
[1730991493137,2.6599,187.87,187.79,2.4039]
[1730991493336,2.6599,187.87,187.83,2.6604]
[1730991494839,12.78199246,187.89,187.79,2.4039]
[1730991495037,12.78199246,187.89,187.81,2.6606]
[1730991495240,12.78199246,187.87,187.79,2.4039]
[1730991495740,2.6605,187.83,187.8,2.6608]
[1730991495947,2.6605,187.83,187.79,2.4039]
[1730991497445,2.6603,187.84,187.8,2.6609]
[1730991498845,12.78199246,187.87,187.79,2.4039]
[1730991499146,2.6602,187.85,187.81,2.6606]
[1730991499738,12.78199246,187.87,187.79,2.4039]
[1730991500337,2.6598,187.88,187.82,2.6605]
[1730991500647,12.78199246,187.89,187.82,2.6605]
[1730991500949,2.6601,187.86,187.82,2.6605]
[1730991501341,10.83401805,187.86,187.82,2.6605]
[1730991502446,8.17391805,187.85,187.79,2.4039]
[1730991502647,8.17391805,187.83,187.79,2.4039]
[1730991502843,2.6608,187.81,187.77,8.17391805]
[1730991503248,8.17391805,187.83,187.77,8.17391805]
[1730991503447,10.83431805,187.84,187.79,10.83491805]
[1730991503646,10.83431805,187.84,187.79,8.17391805]
[1730991504246,14.63411805,187.86,187.8,8.17391805]
[1730991504447,10.83411805,187.86,187.8,8.17391805]
[1730991505044,10.83411805,187.86,187.81,5.1286]
[1730991505253,10.83411805,187.86,187.81,2.4679]
[1730991505448,2.6602,187.86,187.81,2.4679]
[1730991506241,12.77257561,187.89,187.81,2.4679]
[1730991506442,2.66,187.86,187.81,2.4679]